[Event "*** MasterClass Titled Tuesday Blitz"]
[Site "Chess.com"]
[Date "2017.09.05"]
[Round "7"]
[White "michaelq2d5"]
[Black "VSERGUEI"]
[Result "1/2-1/2"]
[WhiteElo "2630"]
[BlackElo "2575"]
[TimeControl "180+2"]
[EndTime "14:43:52 PDT"]
[Termination "Game drawn by repetition"]

1. d4 {[%clk 0:03:02]} 1... d5 {[%clk 0:03:00.4]} 2. c4 {[%clk 0:03:01.6]} 2...
c6 {[%clk 0:02:55.6]} 3. Nc3 {[%clk 0:03:02.1]} 3... Nf6 {[%clk 0:02:57.1]} 4.
e3 {[%clk 0:03:03.4]} 4... a6 {[%clk 0:02:58.8]} 5. Nf3 {[%clk 0:03:04.1]} 5...
b5 {[%clk 0:03:00.4]} 6. b3 {[%clk 0:03:05.5]} 6... Bg4 {[%clk 0:03:00.4]} 7.
Be2 {[%clk 0:03:06.7]} 7... e6 {[%clk 0:03:01.5]} 8. h3 {[%clk 0:03:08.1]} 8...
Bf5 {[%clk 0:03:02.8]} 9. g4 {[%clk 0:03:09.1]} 9... Ne4 {[%clk 0:03:02.5]} 10.
Bd2 {[%clk 0:02:51.5]} 10... Nxc3 {[%clk 0:03:01.8]} 11. Bxc3 {[%clk 0:02:52.7]}
11... Be4 {[%clk 0:03:03]} 12. Bd3 {[%clk 0:02:47.2]} 12... Bxd3 {[%clk
0:02:59.3]} 13. Qxd3 {[%clk 0:02:48]} 13... Nd7 {[%clk 0:03:00.3]} 14. Rc1
{[%clk 0:02:46.7]} 14... Be7 {[%clk 0:02:54.2]} 15. O-O {[%clk 0:02:22.3]} 15...
O-O {[%clk 0:02:50.6]} 16. e4 {[%clk 0:02:01.2]} 16... Rc8 {[%clk 0:02:47.8]}
17. Bb2 {[%clk 0:01:58.6]} 17... dxc4 {[%clk 0:02:42.9]} 18. bxc4 {[%clk
0:01:58.1]} 18... Nc5 {[%clk 0:02:43.6]} 19. Qe3 {[%clk 0:01:57.8]} 19... Na4
{[%clk 0:02:44.4]} 20. Ba1 {[%clk 0:01:51.8]} 20... Nb6 {[%clk 0:02:35.7]} 21.
cxb5 {[%clk 0:01:39.3]} 21... cxb5 {[%clk 0:02:28.3]} 22. Ne5 {[%clk 0:01:27.9]}
22... Nc4 {[%clk 0:02:27.6]} 23. Nxc4 {[%clk 0:01:26.2]} 23... bxc4 {[%clk
0:02:27.6]} 24. Qe2 {[%clk 0:01:19]} 24... Qc7 {[%clk 0:01:46.5]} 25. Rc2 {[%clk
0:01:16.9]} 25... Bg5 {[%clk 0:01:45.5]} 26. e5 {[%clk 0:00:40.6]} 26... Bf4
{[%clk 0:01:41.6]} 27. Qe4 {[%clk 0:00:29]} 27... g5 {[%clk 0:01:41.4]} 28. h4
{[%clk 0:00:30.3]} 28... h6 {[%clk 0:01:37.6]} 29. Rc3 {[%clk 0:00:13.8]} 29...
Qc6 {[%clk 0:01:35.4]} 30. Qxc6 {[%clk 0:00:14.2]} 30... Rxc6 {[%clk 0:01:35.4]}
31. Rb1 {[%clk 0:00:15]} 31... Rd8 {[%clk 0:01:32.7]} 32. Rc2 {[%clk 0:00:15.8]}
32... Rd5 {[%clk 0:01:29.9]} 33. Bc3 {[%clk 0:00:15.9]} 33... Rb5 {[%clk
0:01:29.8]} 34. Rd1 {[%clk 0:00:14]} 34... gxh4 {[%clk 0:01:21.8]} 35. Kg2
{[%clk 0:00:15.1]} 35... Kg7 {[%clk 0:01:18.3]} 36. Kf3 {[%clk 0:00:16.2]} 36...
Bg5 {[%clk 0:01:12.6]} 37. Ke4 {[%clk 0:00:17]} 37... Be7 {[%clk 0:01:09]} 38.
f4 {[%clk 0:00:16.5]} 38... a5 {[%clk 0:01:07]} 39. f5 {[%clk 0:00:15.5]} 39...
Bb4 {[%clk 0:01:04.7]} 40. Rb1 {[%clk 0:00:08.4]} 40... Rcb6 {[%clk 0:00:51.8]}
41. Ba1 {[%clk 0:00:06.3]} 41... c3 {[%clk 0:00:47]} 42. a4 {[%clk 0:00:05]}
42... Rd5 {[%clk 0:00:45.9]} 43. Bxc3 {[%clk 0:00:06.1]} 43... Rc6 {[%clk
0:00:44.6]} 44. Rbc1 {[%clk 0:00:07.3]} 44... Bxc3 {[%clk 0:00:36.1]} 45. Rxc3
{[%clk 0:00:08.5]} 45... Rb6 {[%clk 0:00:37.1]} 46. Rc4 {[%clk 0:00:08.9]} 46...
Rb3 {[%clk 0:00:36.8]} 47. R1c3 {[%clk 0:00:10.1]} 47... Rb1 {[%clk 0:00:34.1]}
48. Rh3 {[%clk 0:00:11]} 48... Re1+ {[%clk 0:00:34.1]} 49. Kd3 {[%clk
0:00:12.2]} 49... Rexe5 {[%clk 0:00:33.6]} 50. fxe6 {[%clk 0:00:12.1]} 50...
Rxe6 {[%clk 0:00:33.2]} 51. Rxh4 {[%clk 0:00:13.4]} 51... Rg6 {[%clk 0:00:32.9]}
52. Rc5 {[%clk 0:00:13]} 52... Rd7 {[%clk 0:00:20.6]} 53. Kc4 {[%clk 0:00:10.6]}
53... Rb6 {[%clk 0:00:17.8]} 54. Rxa5 {[%clk 0:00:09.6]} 54... Rb1 {[%clk
0:00:18.6]} 55. d5 {[%clk 0:00:09.4]} 55... Rc1+ {[%clk 0:00:18.9]} 56. Kd4
{[%clk 0:00:08.8]} 56... Rd1+ {[%clk 0:00:20.1]} 57. Kc5 {[%clk 0:00:10.1]}
57... Rc1+ {[%clk 0:00:21.3]} 58. Kb6 {[%clk 0:00:11.5]} 58... Rd6+ {[%clk
0:00:22.3]} 59. Kb7 {[%clk 0:00:11.2]} 59... Rd7+ {[%clk 0:00:23.6]} 60. Kb6
{[%clk 0:00:11.8]} 60... Rd6+ {[%clk 0:00:25]} 61. Kb7 {[%clk 0:00:11.6]} 61...
Rd7+ {[%clk 0:00:21.4]} 62. Kb6 {[%clk 0:00:11.3]} 1/2-1/2

[Event "*** MasterClass Titled Tuesday Blitz"]
[Site "Chess.com"]
[Date "2017.09.05"]
[Round "7"]
[White "nonscitis"]
[Black "champ2005"]
[Result "1/2-1/2"]
[WhiteElo "2421"]
[BlackElo "2479"]
[TimeControl "180+2"]
[EndTime "14:45:12 PDT"]
[Termination "Game drawn by repetition"]

1. e4 {[%clk 0:03:01.9]} 1... c6 {[%clk 0:03:01.1]} 2. Nc3 {[%clk 0:03:01.7]}
2... d5 {[%clk 0:03:02.1]} 3. Nf3 {[%clk 0:02:57.3]} 3... Nf6 {[%clk 0:03:02.8]}
4. Qe2 {[%clk 0:02:51.3]} 4... dxe4 {[%clk 0:02:58.4]} 5. Nxe4 {[%clk
0:02:51.6]} 5... Nxe4 {[%clk 0:02:59.5]} 6. Qxe4 {[%clk 0:02:52.2]} 6... Nd7
{[%clk 0:02:59.8]} 7. Bc4 {[%clk 0:02:52.8]} 7... Nf6 {[%clk 0:02:59.6]} 8. Ne5
{[%clk 0:02:53.8]} 8... e6 {[%clk 0:02:51.9]} 9. Qe2 {[%clk 0:02:54.8]} 9... Bd6
{[%clk 0:02:48.6]} 10. d4 {[%clk 0:02:55]} 10... h6 {[%clk 0:02:33.1]} 11. O-O
{[%clk 0:02:55.3]} 11... O-O {[%clk 0:02:33.3]} 12. Rd1 {[%clk 0:02:51.5]} 12...
Qc7 {[%clk 0:02:32.4]} 13. Bf4 {[%clk 0:02:50.7]} 13... b6 {[%clk 0:02:26.7]}
14. Qf3 {[%clk 0:02:43.8]} 14... Nd5 {[%clk 0:02:25.6]} 15. Bg3 {[%clk
0:02:08.9]} 15... Bb7 {[%clk 0:02:22.6]} 16. Bxd5 {[%clk 0:01:55.8]} 16... cxd5
{[%clk 0:02:20.8]} 17. c3 {[%clk 0:01:55.2]} 17... f6 {[%clk 0:01:42.8]} 18. Ng6
{[%clk 0:01:52.3]} 18... Rfe8 {[%clk 0:01:42.9]} 19. Bxd6 {[%clk 0:01:43]} 19...
Qxd6 {[%clk 0:01:43.9]} 20. Nh4 {[%clk 0:01:41.5]} 20... g5 {[%clk 0:01:36.8]}
21. Qh5 {[%clk 0:01:41.9]} 21... Qe7 {[%clk 0:01:19.7]} 22. Nf3 {[%clk
0:01:33.6]} 22... Kg7 {[%clk 0:01:19.3]} 23. Re1 {[%clk 0:01:32.3]} 23... Qf7
{[%clk 0:01:20.5]} 24. Qxf7+ {[%clk 0:01:30.8]} 24... Kxf7 {[%clk 0:01:22.4]}
25. Re3 {[%clk 0:01:31.9]} 25... a6 {[%clk 0:01:23.3]} 26. Rae1 {[%clk 0:01:32]}
26... Rac8 {[%clk 0:01:22.6]} 27. h4 {[%clk 0:01:30.4]} 27... Bc6 {[%clk
0:01:22.9]} 28. g3 {[%clk 0:01:27.7]} 28... Bd7 {[%clk 0:01:22.8]} 29. Nd2
{[%clk 0:01:28.2]} 29... a5 {[%clk 0:01:21.1]} 30. f3 {[%clk 0:01:22]} 30...
gxh4 {[%clk 0:01:16.1]} 31. gxh4 {[%clk 0:01:22.7]} 31... Rg8+ {[%clk
0:01:17.1]} 32. Kf2 {[%clk 0:01:23.3]} 32... Rg7 {[%clk 0:01:17.8]} 33. Rg1
{[%clk 0:01:23.7]} 33... Rcg8 {[%clk 0:01:14.7]} 34. Ree1 {[%clk 0:01:21.8]}
34... Rxg1 {[%clk 0:01:03.6]} 35. Rxg1 {[%clk 0:01:23.6]} 35... Rxg1 {[%clk
0:01:04.5]} 36. Kxg1 {[%clk 0:01:25.5]} 36... e5 {[%clk 0:01:06.1]} 37. Kf2
{[%clk 0:01:24.3]} 37... Ke6 {[%clk 0:01:01.9]} 38. Kg3 {[%clk 0:01:16.4]} 38...
Kd6 {[%clk 0:01:00.3]} 39. Nf1 {[%clk 0:01:15]} 39... f5 {[%clk 0:00:46.6]} 40.
f4 {[%clk 0:01:14.1]} 40... e4 {[%clk 0:00:46.6]} 41. Ne3 {[%clk 0:01:14.5]}
41... Ke6 {[%clk 0:00:47.8]} 42. Kf2 {[%clk 0:01:04.5]} 42... b5 {[%clk
0:00:40.2]} 43. b4 {[%clk 0:00:57.2]} 43... a4 {[%clk 0:00:29.8]} 44. a3 {[%clk
0:00:57.8]} 44... Bc6 {[%clk 0:00:27.6]} 45. Nf1 {[%clk 0:00:58]} 45... Be8
{[%clk 0:00:25]} 46. Ng3 {[%clk 0:00:36.1]} 46... Kf6 {[%clk 0:00:25.1]} 47. Nf1
{[%clk 0:00:34.3]} 47... Kg6 {[%clk 0:00:22.5]} 48. Kg3 {[%clk 0:00:34.2]} 48...
Bf7 {[%clk 0:00:20.2]} 49. Ne3 {[%clk 0:00:34.3]} 49... Be6 {[%clk 0:00:21.4]}
50. Ng2 {[%clk 0:00:30]} 50... Kf6 {[%clk 0:00:22.5]} 51. Ne1 {[%clk 0:00:27.2]}
51... Bf7 {[%clk 0:00:22.8]} 52. Nc2 {[%clk 0:00:27.5]} 52... Bh5 {[%clk
0:00:23.5]} 53. Ne3 {[%clk 0:00:28.2]} 53... Ke6 {[%clk 0:00:24.7]} 54. Kf2
{[%clk 0:00:28.1]} 54... Be8 {[%clk 0:00:24.5]} 55. Nd1 {[%clk 0:00:20.6]} 55...
Kf6 {[%clk 0:00:23.7]} 56. Ne3 {[%clk 0:00:21.3]} 56... Bf7 {[%clk 0:00:24.5]}
57. Kg3 {[%clk 0:00:22.8]} 57... Ke6 {[%clk 0:00:23.1]} 58. Ng2 {[%clk
0:00:22.7]} 58... Bh5 {[%clk 0:00:23.3]} 59. Ne3 {[%clk 0:00:22.3]} 59... Bf3
{[%clk 0:00:23.8]} 60. Kf2 {[%clk 0:00:22.9]} 60... Bh5 {[%clk 0:00:24.9]} 61.
Kg3 {[%clk 0:00:24.3]} 61... Bf7 {[%clk 0:00:25.7]} 62. Kf2 {[%clk 0:00:24.6]}
62... Kf6 {[%clk 0:00:26.9]} 63. Kg3 {[%clk 0:00:26.3]} 63... Be6 {[%clk
0:00:28]} 64. Nf1 {[%clk 0:00:27]} 64... Kg6 {[%clk 0:00:28.3]} 65. Ne3 {[%clk
0:00:28.2]} 65... Kh5 {[%clk 0:00:29.1]} 66. Nf1 {[%clk 0:00:29.2]} 66... Kg6
{[%clk 0:00:30.3]} 67. Ne3 {[%clk 0:00:31.1]} 67... Kf6 {[%clk 0:00:31.6]} 68.
Ng2 {[%clk 0:00:31.4]} 68... Bf7 {[%clk 0:00:32.2]} 69. Ne3 {[%clk 0:00:32]}
69... Ke6 {[%clk 0:00:33.1]} 70. Ng2 {[%clk 0:00:32.1]} 70... Bh5 {[%clk
0:00:33.5]} 71. Ne3 {[%clk 0:00:34]} 71... Bf3 {[%clk 0:00:33.8]} 72. Kf2 {[%clk
0:00:34.8]} 72... Bg4 {[%clk 0:00:27.9]} 73. Kg3 {[%clk 0:00:36.8]} 73... Bh5
{[%clk 0:00:28.7]} 74. Kf2 {[%clk 0:00:35.5]} 74... Bg6 {[%clk 0:00:29.6]} 75.
Kg3 {[%clk 0:00:36]} 75... Bf7 {[%clk 0:00:30.2]} 1/2-1/2

[Event "*** MasterClass Titled Tuesday Blitz"]
[Site "Chess.com"]
[Date "2017.09.05"]
[Round "7"]
[White "MITerryble"]
[Black "Aariow"]
[Result "1/2-1/2"]
[WhiteElo "2683"]
[BlackElo "2378"]
[TimeControl "180+2"]
[EndTime "14:45:31 PDT"]
[Termination "Game drawn - insufficient material"]

1. d4 {[%clk 0:03:01.9]} 1... d5 {[%clk 0:03:01]} 2. Nf3 {[%clk 0:03:01.6]} 2...
Nf6 {[%clk 0:03:01.6]} 3. c4 {[%clk 0:02:59.9]} 3... c6 {[%clk 0:03:03]} 4. Nc3
{[%clk 0:02:59.8]} 4... Bf5 {[%clk 0:03:04.5]} 5. Bg5 {[%clk 0:02:58.6]} 5...
dxc4 {[%clk 0:03:01.9]} 6. Bxf6 {[%clk 0:02:58]} 6... exf6 {[%clk 0:03:01.2]} 7.
e4 {[%clk 0:02:59.9]} 7... Bg4 {[%clk 0:03:00.5]} 8. Bxc4 {[%clk 0:03:00]} 8...
Be7 {[%clk 0:02:30.7]} 9. Qb3 {[%clk 0:02:56.1]} 9... O-O {[%clk 0:02:26.5]} 10.
Qxb7 {[%clk 0:02:55.6]} 10... Nd7 {[%clk 0:02:26.8]} 11. Bb3 {[%clk 0:02:35.1]}
11... Nb6 {[%clk 0:02:24.9]} 12. Qa6 {[%clk 0:01:55.2]} 12... Bxf3 {[%clk
0:02:19.4]} 13. gxf3 {[%clk 0:01:57.1]} 13... Qxd4 {[%clk 0:02:20.9]} 14. O-O
{[%clk 0:01:55.4]} 14... Qe5 {[%clk 0:02:12.1]} 15. Ne2 {[%clk 0:01:43.6]} 15...
Bd6 {[%clk 0:02:10.4]} 16. Ng3 {[%clk 0:01:42.3]} 16... h5 {[%clk 0:02:09]} 17.
Rfd1 {[%clk 0:01:43]} 17... h4 {[%clk 0:02:03.2]} 18. Nf1 {[%clk 0:01:43.2]}
18... Qg5+ {[%clk 0:01:59.1]} 19. Kh1 {[%clk 0:01:43.1]} 19... Bf4 {[%clk
0:01:53.3]} 20. Qe2 {[%clk 0:01:28.8]} 20... Rad8 {[%clk 0:01:52.3]} 21. Ne3
{[%clk 0:01:29.3]} 21... Bxe3 {[%clk 0:01:35.7]} 22. Qxe3 {[%clk 0:01:20.7]}
22... Rxd1+ {[%clk 0:01:25.8]} 23. Rxd1 {[%clk 0:01:20.5]} 23... Re8 {[%clk
0:01:27.3]} 24. Qc3 {[%clk 0:01:07.4]} 24... Qf4 {[%clk 0:01:25.2]} 25. Rg1
{[%clk 0:01:00.2]} 25... g5 {[%clk 0:00:44.1]} 26. Rg4 {[%clk 0:00:52.5]} 26...
Qe5 {[%clk 0:00:45]} 27. Qxc6 {[%clk 0:00:53.3]} 27... Rc8 {[%clk 0:00:41.8]}
28. Qb7 {[%clk 0:00:47.5]} 28... Rc7 {[%clk 0:00:39.8]} 29. Qb8+ {[%clk
0:00:29.4]} 29... Kg7 {[%clk 0:00:41]} 30. Rg1 {[%clk 0:00:30.3]} 30... Nd7
{[%clk 0:00:38.1]} 31. Qd8 {[%clk 0:00:23.7]} 31... Nc5 {[%clk 0:00:30.2]} 32.
Qd5 {[%clk 0:00:11.2]} 32... Nxb3 {[%clk 0:00:26.3]} 33. axb3 {[%clk 0:00:11.2]}
33... Qxb2 {[%clk 0:00:20.1]} 34. e5 {[%clk 0:00:10]} 34... Qxe5 {[%clk
0:00:19.9]} 35. Qxe5 {[%clk 0:00:09.9]} 35... fxe5 {[%clk 0:00:21.8]} 36. Rxg5+
{[%clk 0:00:11.1]} 36... Kf6 {[%clk 0:00:23.5]} 37. Rh5 {[%clk 0:00:11.5]} 37...
Rc3 {[%clk 0:00:23]} 38. Kg2 {[%clk 0:00:12.3]} 38... Rxb3 {[%clk 0:00:23.3]}
39. Rxh4 {[%clk 0:00:13.4]} 39... a5 {[%clk 0:00:18.1]} 40. Ra4 {[%clk
0:00:13.9]} 40... Rb5 {[%clk 0:00:19.7]} 41. f4 {[%clk 0:00:11]} 41... Kf5
{[%clk 0:00:17.1]} 42. fxe5 {[%clk 0:00:10.6]} 42... Kxe5 {[%clk 0:00:19]} 43.
h4 {[%clk 0:00:11.5]} 43... Kf5 {[%clk 0:00:20.5]} 44. Kg3 {[%clk 0:00:12.4]}
44... Kg6 {[%clk 0:00:21.5]} 45. f3 {[%clk 0:00:12.1]} 45... Kh5 {[%clk
0:00:22]} 46. Rc4 {[%clk 0:00:12.8]} 46... Rf5 {[%clk 0:00:19.2]} 47. Ra4 {[%clk
0:00:12.4]} 47... Rb5 {[%clk 0:00:20.1]} 48. Rc4 {[%clk 0:00:13.2]} 48... Rd5
{[%clk 0:00:21.1]} 49. Rc7 {[%clk 0:00:13.7]} 49... Kg6 {[%clk 0:00:20.8]} 50.
Ra7 {[%clk 0:00:12.1]} 50... f6 {[%clk 0:00:20.5]} 51. Kg4 {[%clk 0:00:12.7]}
51... Rd4+ {[%clk 0:00:21.8]} 52. f4 {[%clk 0:00:12.5]} 52... f5+ {[%clk
0:00:22.8]} 53. Kg3 {[%clk 0:00:13.5]} 53... Rd3+ {[%clk 0:00:24.4]} 54. Kf2
{[%clk 0:00:13.2]} 54... Kh5 {[%clk 0:00:24.7]} 55. Rxa5 {[%clk 0:00:13.3]}
55... Kg4 {[%clk 0:00:26.3]} 56. h5 {[%clk 0:00:14.1]} 56... Rf3+ {[%clk
0:00:27.4]} 57. Kg2 {[%clk 0:00:14.3]} 57... Rg3+ {[%clk 0:00:28.7]} 58. Kf2
{[%clk 0:00:14.6]} 58... Rh3 {[%clk 0:00:29.8]} 59. Ra4 {[%clk 0:00:14.4]} 59...
Rxh5 {[%clk 0:00:30.4]} 60. Kg2 {[%clk 0:00:15.2]} 60... Rh3 {[%clk 0:00:30.7]}
61. Kf2 {[%clk 0:00:15.6]} 61... Rf3+ {[%clk 0:00:31.9]} 62. Kg2 {[%clk
0:00:16.6]} 62... Rg3+ {[%clk 0:00:32.2]} 63. Kf2 {[%clk 0:00:17.3]} 63... Rb3
{[%clk 0:00:33.9]} 64. Kg2 {[%clk 0:00:17.9]} 64... Rb2+ {[%clk 0:00:35.3]} 65.
Kf1 {[%clk 0:00:18.7]} 65... Kf3 {[%clk 0:00:36.8]} 66. Ke1 {[%clk 0:00:18.5]}
66... Rb1+ {[%clk 0:00:38.2]} 67. Kd2 {[%clk 0:00:19.5]} 67... Rf1 {[%clk
0:00:39]} 68. Kd3 {[%clk 0:00:20]} 68... Kg4 {[%clk 0:00:39.9]} 69. Ke3 {[%clk
0:00:20.4]} 69... Rf3+ {[%clk 0:00:40.6]} 70. Ke2 {[%clk 0:00:21.5]} 70... Kg3
{[%clk 0:00:42]} 71. Ke1 {[%clk 0:00:20.6]} 71... Rb3 {[%clk 0:00:40.9]} 72. Ke2
{[%clk 0:00:20.5]} 72... Rb2+ {[%clk 0:00:41.2]} 73. Ke3 {[%clk 0:00:21.4]}
73... Rb3+ {[%clk 0:00:41.9]} 74. Ke2 {[%clk 0:00:22.7]} 74... Rf3 {[%clk
0:00:28.1]} 75. Ke1 {[%clk 0:00:20.8]} 75... Kg2 {[%clk 0:00:25.9]} 76. Ke2
{[%clk 0:00:20.1]} 76... Kg3 {[%clk 0:00:26.3]} 77. Ke1 {[%clk 0:00:20.1]} 77...
Re3+ {[%clk 0:00:26.3]} 78. Kd2 {[%clk 0:00:21.2]} 78... Kf3 {[%clk 0:00:24.3]}
79. Ra5 {[%clk 0:00:10.9]} 79... Kxf4 {[%clk 0:00:12.1]} 80. Rxf5+ {[%clk
0:00:10.8]} 80... Kxf5 {[%clk 0:00:13.8]} 81. Kxe3 {[%clk 0:00:12.7]} 1/2-1/2

[Event "*** MasterClass Titled Tuesday Blitz"]
[Site "Chess.com"]
[Date "2017.09.05"]
[Round "7"]
[White "Hafez_Bakr"]
[Black "Bad4life"]
[Result "1/2-1/2"]
[WhiteElo "1877"]
[BlackElo "2155"]
[TimeControl "180+2"]
[EndTime "14:47:25 PDT"]
[Termination "Game drawn - insufficient material"]

1. e4 {[%clk 0:02:00.4]} 1... d6 {[%clk 0:02:59.8]} 2. d4 {[%clk 0:02:00.7]}
2... Nf6 {[%clk 0:03:01.2]} 3. Bd3 {[%clk 0:01:59.9]} 3... g6 {[%clk 0:03:01.5]}
4. Nc3 {[%clk 0:01:57.6]} 4... a6 {[%clk 0:03:02.6]} 5. f3 {[%clk 0:01:57.8]}
5... b5 {[%clk 0:03:03.5]} 6. Nge2 {[%clk 0:01:58.1]} 6... Bb7 {[%clk
0:03:03.7]} 7. O-O {[%clk 0:01:58.3]} 7... Nbd7 {[%clk 0:03:06]} 8. Qe1 {[%clk
0:01:58.9]} 8... c5 {[%clk 0:03:04.6]} 9. dxc5 {[%clk 0:01:52.4]} 9... dxc5
{[%clk 0:02:55.3]} 10. Ng3 {[%clk 0:01:54.3]} 10... c4 {[%clk 0:02:56.2]} 11.
Be2 {[%clk 0:01:54.3]} 11... Qb6+ {[%clk 0:02:51.9]} 12. Kh1 {[%clk 0:01:53.3]}
12... h5 {[%clk 0:02:52.9]} 13. Rg1 {[%clk 0:01:48.1]} 13... h4 {[%clk
0:02:53.5]} 14. Nf1 {[%clk 0:01:48.8]} 14... b4 {[%clk 0:02:46.6]} 15. Nd1
{[%clk 0:01:44.8]} 15... Bxe4 {[%clk 0:02:40.8]} 16. fxe4 {[%clk 0:01:41.6]}
16... Nxe4 {[%clk 0:02:41.9]} 17. Bf4 {[%clk 0:01:36.5]} 17... e5 {[%clk
0:02:37.9]} 18. Be3 {[%clk 0:01:33.9]} 18... Qf6 {[%clk 0:02:33.6]} 19. h3
{[%clk 0:01:34]} 19... Rc8 {[%clk 0:02:23.1]} 20. Bf3 {[%clk 0:01:30.3]} 20...
Ng5 {[%clk 0:02:16.5]} 21. Bd5 {[%clk 0:01:25.1]} 21... Bd6 {[%clk 0:02:05.4]}
22. Qf2 {[%clk 0:01:15.4]} 22... Qxf2 {[%clk 0:01:58.2]} 23. Nxf2 {[%clk
0:01:11.7]} 23... Rh5 {[%clk 0:01:54.9]} 24. Bb7 {[%clk 0:01:09]} 24... Rb8
{[%clk 0:01:44.8]} 25. Bxa6 {[%clk 0:01:09.2]} 25... f5 {[%clk 0:01:45.1]} 26.
Bxg5 {[%clk 0:01:01.8]} 26... Rxg5 {[%clk 0:01:44.8]} 27. Bxc4 {[%clk
0:01:03.7]} 27... Bc5 {[%clk 0:01:38.3]} 28. Nd3 {[%clk 0:01:01.8]} 28... Bxg1
{[%clk 0:01:38.7]} 29. Kxg1 {[%clk 0:01:02.7]} 29... Ke7 {[%clk 0:01:38.2]} 30.
Re1 {[%clk 0:00:59.3]} 30... Kd6 {[%clk 0:01:36.5]} 31. Bb3 {[%clk 0:00:55.9]}
31... Ra8 {[%clk 0:01:21.3]} 32. Nf2 {[%clk 0:00:50.9]} 32... Nc5 {[%clk
0:01:13.6]} 33. Rd1+ {[%clk 0:00:49.7]} 33... Ke7 {[%clk 0:01:10.5]} 34. Bc4
{[%clk 0:00:47]} 34... Rc8 {[%clk 0:01:04.6]} 35. Ne3 {[%clk 0:00:45.9]} 35...
Na4 {[%clk 0:00:59.4]} 36. b3 {[%clk 0:00:45]} 36... Nc3 {[%clk 0:00:59.4]} 37.
Nd5+ {[%clk 0:00:44.9]} 37... Nxd5 {[%clk 0:00:59.2]} 38. Rxd5 {[%clk
0:00:45.4]} 38... e4 {[%clk 0:00:58.2]} 39. Nxe4 {[%clk 0:00:44.8]} 39... Rh5
{[%clk 0:00:50.1]} 40. Nc5 {[%clk 0:00:37.8]} 40... Kf6 {[%clk 0:00:45.5]} 41.
Be2 {[%clk 0:00:36.8]} 41... Rhh8 {[%clk 0:00:42.7]} 42. Bf3 {[%clk 0:00:35.3]}
42... Rhe8 {[%clk 0:00:43.2]} 43. Nd7+ {[%clk 0:00:33.3]} 43... Kg5 {[%clk
0:00:38.6]} 44. Rd2 {[%clk 0:00:31.9]} 44... Rc7 {[%clk 0:00:32.7]} 45. Nb6
{[%clk 0:00:29.1]} 45... Re1+ {[%clk 0:00:27.6]} 46. Kh2 {[%clk 0:00:29.5]}
46... Ra1 {[%clk 0:00:29.5]} 47. Nd5 {[%clk 0:00:28.8]} 47... Rb7 {[%clk
0:00:27.2]} 48. c4 {[%clk 0:00:29.4]} 48... bxc3 {[%clk 0:00:21.1]} 49. Nxc3
{[%clk 0:00:30]} 49... Rc7 {[%clk 0:00:22.6]} 50. Ne2 {[%clk 0:00:30.1]} 50...
Re7 {[%clk 0:00:22.9]} 51. g3 {[%clk 0:00:25.8]} 51... Re3 {[%clk 0:00:23]} 52.
gxh4+ {[%clk 0:00:26]} 52... Kxh4 {[%clk 0:00:24.6]} 53. Bg2 {[%clk 0:00:25.7]}
53... Re1 {[%clk 0:00:22]} 54. Rd4+ {[%clk 0:00:26]} 54... Kg5 {[%clk
0:00:24.1]} 55. Ng3 {[%clk 0:00:23.9]} 55... Ra1 {[%clk 0:00:21.8]} 56. h4+
{[%clk 0:00:23.6]} 56... Kf6 {[%clk 0:00:23.8]} 57. Rd6+ {[%clk 0:00:24.2]}
57... Kg7 {[%clk 0:00:23.2]} 58. h5 {[%clk 0:00:24.9]} 58... f4 {[%clk
0:00:19.7]} 59. Rxg6+ {[%clk 0:00:25]} 59... Kh7 {[%clk 0:00:19.7]} 60. Nf5
{[%clk 0:00:26.2]} 60... Rxa2 {[%clk 0:00:21.3]} 61. Rg7+ {[%clk 0:00:26.5]}
61... Kh8 {[%clk 0:00:22.4]} 62. h6 {[%clk 0:00:27.7]} 62... Ree2 {[%clk
0:00:15]} 63. Ne7 {[%clk 0:00:26.2]} 63... Ra6 {[%clk 0:00:09.5]} 64. Ng6+
{[%clk 0:00:26.4]} 64... Rxg6 {[%clk 0:00:10.4]} 65. Rxg6 {[%clk 0:00:27.4]}
65... f3 {[%clk 0:00:11.9]} 66. Kg1 {[%clk 0:00:26.1]} 66... Kh7 {[%clk
0:00:07.5]} 67. Rg3 {[%clk 0:00:24.1]} 67... fxg2 {[%clk 0:00:05.3]} 68. Rxg2
{[%clk 0:00:24.5]} 68... Re1+ {[%clk 0:00:06.6]} 69. Kf2 {[%clk 0:00:24]} 69...
Rb1 {[%clk 0:00:06.1]} 70. Rg3 {[%clk 0:00:24.8]} 70... Kxh6 {[%clk 0:00:06.6]}
71. Ke2 {[%clk 0:00:26]} 71... Kh5 {[%clk 0:00:07.6]} 72. Kd2 {[%clk 0:00:27.2]}
72... Kh4 {[%clk 0:00:09.2]} 73. Rc3 {[%clk 0:00:28.1]} 73... Kg4 {[%clk
0:00:09.6]} 74. Kc2 {[%clk 0:00:29.3]} 74... Rh1 {[%clk 0:00:10.1]} 75. b4
{[%clk 0:00:30.3]} 75... Kf5 {[%clk 0:00:11.7]} 76. Kb3 {[%clk 0:00:30.6]} 76...
Ke6 {[%clk 0:00:12.7]} 77. Ka4 {[%clk 0:00:31.3]} 77... Kd6 {[%clk 0:00:13.9]}
78. Kb5 {[%clk 0:00:32.5]} 78... Rb1 {[%clk 0:00:12.6]} 79. Ka5 {[%clk
0:00:33.1]} 79... Ra1+ {[%clk 0:00:12.2]} 80. Kb6 {[%clk 0:00:34.3]} 80... Rb1
{[%clk 0:00:14.2]} 81. b5 {[%clk 0:00:35.3]} 81... Kd7 {[%clk 0:00:16.4]} 82.
Ka6 {[%clk 0:00:35.4]} 82... Rh1 {[%clk 0:00:12.1]} 83. b6 {[%clk 0:00:36.1]}
83... Ra1+ {[%clk 0:00:11.8]} 84. Kb7 {[%clk 0:00:37]} 84... Rb1 {[%clk
0:00:13.7]} 85. Rc5 {[%clk 0:00:35.7]} 85... Kd6 {[%clk 0:00:12.9]} 86. Rc4
{[%clk 0:00:36.5]} 86... Kd5 {[%clk 0:00:11.8]} 87. Rc2 {[%clk 0:00:37.2]} 87...
Kd6 {[%clk 0:00:11.2]} 88. Rc4 {[%clk 0:00:33.2]} 88... Kd5 {[%clk 0:00:12.4]}
89. Rc6 {[%clk 0:00:32.6]} 89... Rh1 {[%clk 0:00:09.9]} 90. Rc3 {[%clk
0:00:26.1]} 90... Rb1 {[%clk 0:00:10.2]} 91. Kc7 {[%clk 0:00:26.7]} 91... Rh1
{[%clk 0:00:06.8]} 92. b7 {[%clk 0:00:27.8]} 92... Rh7+ {[%clk 0:00:08.4]} 93.
Kb8 {[%clk 0:00:28.6]} 93... Kd4 {[%clk 0:00:04.8]} 94. Rc7 {[%clk 0:00:28.1]}
94... Rh1 {[%clk 0:00:05.2]} 95. Kc8 {[%clk 0:00:26.3]} 95... Rh8+ {[%clk
0:00:04.3]} 96. Kd7 {[%clk 0:00:27.3]} 96... Kd5 {[%clk 0:00:05.5]} 97. Rc8
{[%clk 0:00:27.6]} 97... Rh7+ {[%clk 0:00:05.8]} 98. Kd8 {[%clk 0:00:27]} 98...
Rxb7 {[%clk 0:00:06.1]} 99. Rc7 {[%clk 0:00:26.5]} 99... Rxc7 {[%clk 0:00:07.2]}
100. Kxc7 {[%clk 0:00:27.2]} 1/2-1/2